Workbook

Sheet ①事業体特性の評価
A4: １．事業体特性の評価方法（レーダーチャートの作成） | D4: ↓入力
A6: 番号 | B6: 業務指標名（PI） | C6: ＰＩ算定式 | D6: PI値 | E6: 評価点 （レーダーチャート）
A8: 2007 | B8: 配水管延長密度 | C8: 配水管延長 /給水区域面積 （ｋｍ/ｋｍ２） | E8: =IF(D8<3.7,1,IF(D8<5.9,2,IF(D8<9.3,3,IF(D8<17.1,4,5)))) -> 1
A9: 2103 | B9: 経年化管路率 | C9: （法定耐用年数を超えた管路延長/管路総延長）×100 （％） | E9: =IF(D9=0,5,IF(D9<=3.4,4,IF(D9<=7.9,3,IF(D9<=14.6,2,1)))) -> 5
A10: 3002 | B10: 経常収支比率 | C10: [（営業収益+営業外収益）/（営業費用+営業外費用）］×100 （％） | E10: =IF(D10<103.2,1,IF(D10<109,2,IF(D10<115.6,3,IF(D10<132.6,4,5)))) -> 1
A11: 2104 | B11: 管路の更新率 | C11: （更新された管路延長 /管路総延長）×100 （％） | E11: =IF(D11=0,1,IF(D11<0.39,2,IF(D11<0.72,3,IF(D11<1.21,4,5)))) -> 1
A12: 3018 | B12: 有収率 | C12: （有収水量/給水量）×100 （％） | E12: =IF(D12<81.1,1,IF(D12<87.1,2,IF(D12<92.1,3,IF(D12<97,4,5)))) -> 1
B15: 事業体特性の評価基準（ＰＩ－評価の関係）

Sheet ②維持管理情報・業務の項目別評価と総合評価
C2: 維持管理情報に関する評価
C3: 項目の分類 | D3: NO | F3: 項目 | G3: 施設の 有無 注5） | H3: 台帳や記録簿の 有無 | L3: 台帳や記録簿の管理・活用状況（複数回答可） | R3: 合計
C4: 維持管理情報 | D4: 1 | E4: 図面及び台帳（1） | F4: 管路図面 注1） | H4: 無 | I4: 0 | J4: 有 | K4: 2 | L4: 電子化されている | M4: 1 | N4: 記録の保管、データ更新を実施 | O4: 1 | P4: 情報活用している 注3） | Q4: 1 | R4: =SUMIF(リンク!F4,TRUE,I4)+SUMIF(リンク!G4,TRUE,K4)+SUMIF(リンク!H4,TRUE,M4)+SUMIF(リンク!I4,TRUE,O4)+SUMIF(リンク!J4,TRUE,Q4) -> 0
D5: 2 | F5: 弁栓台帳 注2） | H5: 無 | I5: 0 | J5: 有 | K5: 2 | L5: 電子化されている | M5: 1 | N5: 記録の保管、データ更新を実施 | O5: 1 | P5: 情報活用している | Q5: 1 | R5: =SUMIF(リンク!F5,TRUE,I5)+SUMIF(リンク!G5,TRUE,K5)+SUMIF(リンク!H5,TRUE,M5)+SUMIF(リンク!I5,TRUE,O5)+SUMIF(リンク!J5,TRUE,Q5) -> 0
D6: 3 | F6: 管路台帳 | H6: 無 | I6: 0 | J6: 有 | K6: 2 | L6: 電子化されている | M6: 1 | N6: 記録の保管、データ更新を実施 | O6: 1 | P6: 情報活用している | Q6: 1 | R6: =SUMIF(リンク!F6,TRUE,I6)+SUMIF(リンク!G6,TRUE,K6)+SUMIF(リンク!H6,TRUE,M6)+SUMIF(リンク!I6,TRUE,O6)+SUMIF(リンク!J6,TRUE,Q6) -> 0
D7: 4 | E7: 図面及び台帳（2） | F7: 水管橋・橋梁添架管台帳 | G7: 無 | H7: 無 | I7: 0 | J7: 有 | K7: 2 | L7: 電子化されている | M7: 1 | N7: 記録の保管、データ更新を実施 | O7: 1 | P7: 情報活用している | Q7: 1 | R7: =SUMIF(リンク!F7,TRUE,I7)+SUMIF(リンク!G7,TRUE,K7)+SUMIF(リンク!H7,TRUE,M7)+SUMIF(リンク!I7,TRUE,O7)+SUMIF(リンク!J7,TRUE,Q7) -> 0
D8: 5 | F8: 電気防食設備台帳 | G8: 無 | H8: 無 | I8: 0 | J8: 有 | K8: 2 | L8: 電子化されている | M8: 1 | N8: 記録の保管、データ更新を実施 | O8: 1 | P8: 情報活用している | Q8: 1 | R8: =SUMIF(リンク!F8,TRUE,I8)+SUMIF(リンク!G8,TRUE,K8)+SUMIF(リンク!H8,TRUE,M8)+SUMIF(リンク!I8,TRUE,O8)+SUMIF(リンク!J8,TRUE,Q8) -> 0
D9: 6 | F9: 震災対策用貯水施設台帳 | G9: 無 | H9: 無 | I9: 0 | J9: 有 | K9: 2 | L9: 電子化されている | M9: 1 | N9: 記録の保管、データ更新を実施 | O9: 1 | P9: 情報活用している | Q9: 1 | R9: =SUMIF(リンク!F9,TRUE,I9)+SUMIF(リンク!G9,TRUE,K9)+SUMIF(リンク!H9,TRUE,M9)+SUMIF(リンク!I9,TRUE,O9)+SUMIF(リンク!J9,TRUE,Q9) -> 0
D10: 7 | E10: 事故対応情報録 | F10: 応急給水 | H10: 無 | I10: 0 | J10: 有 | K10: 2 | L10: 電子化されている | M10: 1 | N10: 記録の保管、データ更新を実施 | O10: 1 | P10: 情報活用している | Q10: 1 | R10: =SUMIF(リンク!F10,TRUE,I10)+SUMIF(リンク!G10,TRUE,K10)+SUMIF(リンク!H10,TRUE,M10)+SUMIF(リンク!I10,TRUE,O10)+SUMIF(リンク!J10,TRUE,Q10) -> 0
D11: 8 | F11: 備蓄資機材一覧 | H11: 無 | I11: 0 | J11: 有 | K11: 2 | L11: 電子化されている | M11: 1 | N11: 記録の保管、データ更新を実施 | O11: 1 | P11: 情報活用している | Q11: 1 | R11: =SUMIF(リンク!F11,TRUE,I11)+SUMIF(リンク!G11,TRUE,K11)+SUMIF(リンク!H11,TRUE,M11)+SUMIF(リンク!I11,TRUE,O11)+SUMIF(リンク!J11,TRUE,Q11) -> 0
D12: 9 | F12: 緊急輸送道路 | G12: 無 | H12: 無 | I12: 0 | J12: 有 | K12: 2 | L12: 電子化されている | M12: 1 | N12: 記録の保管、データ更新を実施 | O12: 1 | P12: 情報活用している | Q12: 1 | R12: =SUMIF(リンク!F12,TRUE,I12)+SUMIF(リンク!G12,TRUE,K12)+SUMIF(リンク!H12,TRUE,M12)+SUMIF(リンク!I12,TRUE,O12)+SUMIF(リンク!J12,TRUE,Q12) -> 0
D13: 10 | E13: 運転記録 注4） | F13: 水質調査記録 | H13: 無 | I13: 0 | J13: 有 | K13: 2 | L13: 電子化されている | M13: 1 | N13: 記録の保管、データ更新を実施 | O13: 1 | P13: 情報活用している | Q13: 1 | R13: =SUMIF(リンク!F13,TRUE,I13)+SUMIF(リンク!G13,TRUE,K13)+SUMIF(リンク!H13,TRUE,M13)+SUMIF(リンク!I13,TRUE,O13)+SUMIF(リンク!J13,TRUE,Q13) -> 0
D14: 11 | F14: 水量調査記録 | H14: 無 | I14: 0 | J14: 有 | K14: 2 | L14: 電子化されている | M14: 1 | N14: 記録の保管、データ更新を実施 | O14: 1 | P14: 情報活用している | Q14: 1 | R14: =SUMIF(リンク!F14,TRUE,I14)+SUMIF(リンク!G14,TRUE,K14)+SUMIF(リンク!H14,TRUE,M14)+SUMIF(リンク!I14,TRUE,O14)+SUMIF(リンク!J14,TRUE,Q14) -> 0
D15: 12 | F15: 水圧調査記録 | H15: 無 | I15: 0 | J15: 有 | K15: 2 | L15: 電子化されている | M15: 1 | N15: 記録の保管、データ更新を実施 | O15: 1 | P15: 情報活用している | Q15: 1 | R15: =SUMIF(リンク!F15,TRUE,I15)+SUMIF(リンク!G15,TRUE,K15)+SUMIF(リンク!H15,TRUE,M15)+SUMIF(リンク!I15,TRUE,O15)+SUMIF(リンク!J15,TRUE,Q15) -> 0
D16: 13 | E16: 保全記録 | F16: 事故対応等の記録 | H16: 無 | I16: 0 | J16: 有 | K16: 2 | L16: 電子化されている | M16: 1 | N16: 記録の保管、データ更新を実施 | O16: 1 | P16: 情報活用している | Q16: 1 | R16: =SUMIF(リンク!F16,TRUE,I16)+SUMIF(リンク!G16,TRUE,K16)+SUMIF(リンク!H16,TRUE,M16)+SUMIF(リンク!I16,TRUE,O16)+SUMIF(リンク!J16,TRUE,Q16) -> 0
D17: 14 | F17: 日常及び定期点検の記録 | H17: 無 | I17: 0 | J17: 有 | K17: 2 | L17: 電子化されている | M17: 1 | N17: 記録の保管、データ更新を実施 | O17: 1 | P17: 情報活用している | Q17: 1 | R17: =SUMIF(リンク!F17,TRUE,I17)+SUMIF(リンク!G17,TRUE,K17)+SUMIF(リンク!H17,TRUE,M17)+SUMIF(リンク!I17,TRUE,O17)+SUMIF(リンク!J17,TRUE,Q17) -> 0
D18: 15 | F18: 詳細調査の記録 | H18: 無 | I18: 0 | J18: 有 | K18: 2 | L18: 電子化されている | M18: 1 | N18: 記録の保管、データ更新を実施 | O18: 1 | P18: 情報活用している | Q18: 1 | R18: =SUMIF(リンク!F18,TRUE,I18)+SUMIF(リンク!G18,TRUE,K18)+SUMIF(リンク!H18,TRUE,M18)+SUMIF(リンク!I18,TRUE,O18)+SUMIF(リンク!J18,TRUE,Q18) -> 0 | S18: =SUM(R4:R18) -> 0
C20: 注1）配管図、詳細図、工事完成図等の図面を示す。
C21: 注2）水理、水質、事故・苦情、埋設環境、社会的情報、占用許可関係等の情報を記載した台帳を示す。一つでも当てはまる場合は、「あり」で回答。
C22: （例）マッピングシステムで、管路図があり、事故履歴が属性としてある場合は、「管路図面」「管路台帳」ともに「あり」で回答。
C23: 注3）情報活用とは、収集したデータを点検・修繕計画や更新計画策定に活用するものである。
C24: 注4）業務の実施状況の小分類で、該当するものが一つでもあればチェックする。
C26: 維持管理業務に関する評価
C27: 項目の分類 | D27: NO | F27: 項目 | G27: 施設の 有無 注5） | H27: 実施状況の有無 | L27: 記録簿の活用状況（複数回答可） | R27: 合計
C28: 維持管理業務 | D28: 1 | E28: 事故対応等 | F28: 事故対応 | H28: 無 | I28: 0 | J28: 有 | K28: 2 | L28: マニュアルあり | M28: 1 | N28: 管理記録を保管している | O28: 1 | P28: 情報活用している | Q28: 1 | R28: =SUMIF(リンク!F19,TRUE,I28)+SUMIF(リンク!G19,TRUE,K28)+SUMIF(リンク!H19,TRUE,M28)+SUMIF(リンク!I19,TRUE,O28)+SUMIF(リンク!J19,TRUE,Q28) -> 0
D29: 2 | F29: 修繕工事 | H29: 無 | I29: 0 | J29: 有 | K29: 2 | L29: マニュアルあり | M29: 1 | N29: 管理記録を保管している | O29: 1 | P29: 情報活用している | Q29: 1 | R29: =SUMIF(リンク!F20,TRUE,I29)+SUMIF(リンク!G20,TRUE,K29)+SUMIF(リンク!H20,TRUE,M29)+SUMIF(リンク!I20,TRUE,O29)+SUMIF(リンク!J20,TRUE,Q29) -> 0
D30: 3 | F30: 応急給水 | H30: 無 | I30: 0 | J30: 有 | K30: 2 | L30: マニュアルあり | M30: 1 | N30: 管理記録を保管している | O30: 1 | P30: 情報活用している | Q30: 1 | R30: =SUMIF(リンク!F21,TRUE,I30)+SUMIF(リンク!G21,TRUE,K30)+SUMIF(リンク!H21,TRUE,M30)+SUMIF(リンク!I21,TRUE,O30)+SUMIF(リンク!J21,TRUE,Q30) -> 0
D31: 4 | F31: 利用者対応 | H31: 無 | I31: 0 | J31: 有 | K31: 2 | L31: マニュアルあり | M31: 1 | N31: 管理記録を保管している | O31: 1 | P31: 情報活用している | Q31: 1 | R31: =SUMIF(リンク!F22,TRUE,I31)+SUMIF(リンク!G22,TRUE,K31)+SUMIF(リンク!H22,TRUE,M31)+SUMIF(リンク!I22,TRUE,O31)+SUMIF(リンク!J22,TRUE,Q31) -> 0
D32: 5 | F32: 他工事立会 | H32: 無 | I32: 0 | J32: 有 | K32: 2 | L32: マニュアルあり | M32: 1 | N32: 管理記録を保管している | O32: 1 | P32: 情報活用している | Q32: 1 | R32: =SUMIF(リンク!F23,TRUE,I32)+SUMIF(リンク!G23,TRUE,K32)+SUMIF(リンク!H23,TRUE,M32)+SUMIF(リンク!I23,TRUE,O32)+SUMIF(リンク!J23,TRUE,Q32) -> 0
D33: 6 | E33: 日常及び定期点検 | F33: 弁栓類点検 | H33: 無 | I33: 0 | J33: 有 | K33: 2 | L33: マニュアルあり | M33: 1 | N33: 管理記録を保管している | O33: 1 | P33: 情報活用している | Q33: 1 | R33: =SUMIF(リンク!F24,TRUE,I33)+SUMIF(リンク!G24,TRUE,K33)+SUMIF(リンク!H24,TRUE,M33)+SUMIF(リンク!I24,TRUE,O33)+SUMIF(リンク!J24,TRUE,Q33) -> 0
D34: 7 | F34: 弁室・弁きょう等点検 | H34: 無 | I34: 0 | J34: 有 | K34: 2 | L34: マニュアルあり | M34: 1 | N34: 管理記録を保管している | O34: 1 | P34: 情報活用している | Q34: 1 | R34: =SUMIF(リンク!F25,TRUE,I34)+SUMIF(リンク!G25,TRUE,K34)+SUMIF(リンク!H25,TRUE,M34)+SUMIF(リンク!I25,TRUE,O34)+SUMIF(リンク!J25,TRUE,Q34) -> 0
D35: 8 | F35: 水管橋等点検 | G35: 無 | H35: 無 | I35: 0 | J35: 有 | K35: 2 | L35: マニュアルあり | M35: 1 | N35: 管理記録を保管している | O35: 1 | P35: 情報活用している | Q35: 1 | R35: =SUMIF(リンク!F26,TRUE,I35)+SUMIF(リンク!G26,TRUE,K35)+SUMIF(リンク!H26,TRUE,M35)+SUMIF(リンク!I26,TRUE,O35)+SUMIF(リンク!J26,TRUE,Q35) -> 0
D36: 9 | F36: 電気防食設備の点検 | G36: 無 | H36: 無 | I36: 0 | J36: 有 | K36: 2 | L36: マニュアルあり | M36: 1 | N36: 管理記録を保管している | O36: 1 | P36: 情報活用している | Q36: 1 | R36: =SUMIF(リンク!F27,TRUE,I36)+SUMIF(リンク!G27,TRUE,K36)+SUMIF(リンク!H27,TRUE,M36)+SUMIF(リンク!I27,TRUE,O36)+SUMIF(リンク!J27,TRUE,Q36) -> 0
D37: 10 | F37: 震災対策用貯水施設の点検 | G37: 無 | H37: 無 | I37: 0 | J37: 有 | K37: 2 | L37: マニュアルあり | M37: 1 | N37: 管理記録を保管している | O37: 1 | P37: 情報活用している | Q37: 1 | R37: =SUMIF(リンク!F28,TRUE,I37)+SUMIF(リンク!G28,TRUE,K37)+SUMIF(リンク!H28,TRUE,M37)+SUMIF(リンク!I28,TRUE,O37)+SUMIF(リンク!J28,TRUE,Q37) -> 0
D38: 11 | F38: 管路パトロール | H38: 無 | I38: 0 | J38: 有 | K38: 2 | L38: マニュアルあり | M38: 1 | N38: 管理記録を保管している | O38: 1 | P38: 情報活用している | Q38: 1 | R38: =SUMIF(リンク!F29,TRUE,I38)+SUMIF(リンク!G29,TRUE,K38)+SUMIF(リンク!H29,TRUE,M38)+SUMIF(リンク!I29,TRUE,O38)+SUMIF(リンク!J29,TRUE,Q38) -> 0
D39: 12 | E39: 詳細調査 | F39: 漏水調査 | H39: 無 | I39: 0 | J39: 有 | K39: 2 | L39: マニュアルあり | M39: 1 | N39: 管理記録を保管している | O39: 1 | P39: 情報活用している | Q39: 1 | R39: =SUMIF(リンク!F30,TRUE,I39)+SUMIF(リンク!G30,TRUE,K39)+SUMIF(リンク!H30,TRUE,M39)+SUMIF(リンク!I30,TRUE,O39)+SUMIF(リンク!J30,TRUE,Q39) -> 0
D40: 13 | F40: 水量・水圧・水質調査 | H40: 無 | I40: 0 | J40: 有 | K40: 2 | L40: マニュアルあり | M40: 1 | N40: 管理記録を保管している | O40: 1 | P40: 情報活用している | Q40: 1 | R40: =SUMIF(リンク!F31,TRUE,I40)+SUMIF(リンク!G31,TRUE,K40)+SUMIF(リンク!H31,TRUE,M40)+SUMIF(リンク!I31,TRUE,O40)+SUMIF(リンク!J31,TRUE,Q40) -> 0
D41: 14 | F41: 洗浄作業 注6） | H41: 無 | I41: 0 | J41: 有 | K41: 2 | L41: マニュアルあり | M41: 1 | N41: 管理記録を保管している | O41: 1 | P41: 情報活用している | Q41: 1 | R41: =SUMIF(リンク!F32,TRUE,I41)+SUMIF(リンク!G32,TRUE,K41)+SUMIF(リンク!H32,TRUE,M41)+SUMIF(リンク!I32,TRUE,O41)+SUMIF(リンク!J32,TRUE,Q41) -> 0
D42: 15 | F42: 管体腐食度調査 注7） | H42: 無 | I42: 0 | J42: 有 | K42: 2 | L42: マニュアルあり | M42: 1 | N42: 管理記録を保管している | O42: 1 | P42: 情報活用している | Q42: 1 | R42: =SUMIF(リンク!F33,TRUE,I42)+SUMIF(リンク!G33,TRUE,K42)+SUMIF(リンク!H33,TRUE,M42)+SUMIF(リンク!I33,TRUE,O42)+SUMIF(リンク!J33,TRUE,Q42) -> 0
D43: 16 | F43: 管内調査 | H43: 無 | I43: 0 | J43: 有 | K43: 2 | L43: マニュアルあり | M43: 1 | N43: 管理記録を保管している | O43: 1 | P43: 情報活用している | Q43: 1 | R43: =SUMIF(リンク!F34,TRUE,I43)+SUMIF(リンク!G34,TRUE,K43)+SUMIF(リンク!H34,TRUE,M43)+SUMIF(リンク!I34,TRUE,O43)+SUMIF(リンク!J34,TRUE,Q43) -> 0 | S43: =SUM(R28:R43) -> 0
C45: 注5）該当する施設が無い場合のみチェックする。
C46: 注6）工事後の洗管や管内の夾雑物除去のための洗浄作業を示す。
C47: 注7）埋設環境調査において、土質調査もしくは、管体調査を示す。
C111: 維持管理情報・業務の項目別評価と総合評価
C112: 事業体特性の評価
C140: 業務の実施状況

Sheet 総合評価 (hidden)
B2: 項目の分類 | C2: NO | D2: 項目 | F2: 合計（a） | G2: 重要度（ｂ） ※重み付け | H2: 評価 （a）×（b）
B3: 維持管理情報 | C3: 1 | D3: 図面及び台帳（1） | E3: 図面台帳 | F3: =②維持管理情報・業務の項目別評価と総合評価!R4 -> 0 | G3: 15 | H3: =F3*G3 -> 0
C4: 2 | E4: 弁栓台帳 | F4: =②維持管理情報・業務の項目別評価と総合評価!R5 -> 0 | G4: 11 | H4: =F4*G4 -> 0
C5: 3 | E5: 管路台帳 | F5: =②維持管理情報・業務の項目別評価と総合評価!R6 -> 0 | G5: 9 | H5: 0
C6: 4 | D6: 図面及び台帳（2） | E6: 水管橋・橋梁添架管台帳 | F6: =②維持管理情報・業務の項目別評価と総合評価!R7 -> 0 | G6: 6 | H6: 0
C7: 5 | E7: 電気防食設備台帳 | F7: =②維持管理情報・業務の項目別評価と総合評価!R8 -> 0 | G7: 4 | H7: 0
C8: 6 | E8: 震災対策用貯水施設台帳 | F8: =②維持管理情報・業務の項目別評価と総合評価!R9 -> 0 | G8: 4 | H8: 0
C9: 7 | D9: 事故対応情報録 | E9: 応急給水 | F9: =②維持管理情報・業務の項目別評価と総合評価!R10 -> 0 | G9: 6 | H9: 0
C10: 8 | E10: 備蓄資機材一覧 | F10: =②維持管理情報・業務の項目別評価と総合評価!R11 -> 0 | G10: 6 | H10: 0
C11: 9 | E11: 緊急輸送道路 | F11: =②維持管理情報・業務の項目別評価と総合評価!R12 -> 0 | G11: 3 | H11: 0
C12: 10 | D12: 運転記録 | E12: 水質調査記録 | F12: =②維持管理情報・業務の項目別評価と総合評価!R13 -> 0 | G12: 6 | H12: 0
C13: 11 | E13: 水量調査記録 | F13: =②維持管理情報・業務の項目別評価と総合評価!R14 -> 0 | G13: 5 | H13: 0
C14: 12 | E14: 水圧調査記録 | F14: =②維持管理情報・業務の項目別評価と総合評価!R15 -> 0 | G14: 5 | H14: 0
C15: 13 | D15: 保全記録 | E15: 事故対応等の記録 | F15: =②維持管理情報・業務の項目別評価と総合評価!R16 -> 0 | G15: 8 | H15: 0
C16: 14 | E16: 日常及び定期点検の記録 | F16: =②維持管理情報・業務の項目別評価と総合評価!R17 -> 0 | G16: 7 | H16: 0
C17: 15 | E17: 詳細調査の記録 | F17: =②維持管理情報・業務の項目別評価と総合評価!R18 -> 0 | G17: 5 | H17: 0
B18: 合計（500点満点） | H18: =SUM(H3:H17) -> 0
B19: 総合評価点（d）＝（ｃ）/5（100点満点） | H19: =H18/5 -> 0
B21: 項目の分類 | C21: NO | D21: 項目 | F21: 合計（a） | G21: 重要度（ｂ） ※重み付け | H21: 評価 （a）×（b）
B22: 維持管理業務 | C22: 1 | D22: 事故対応等 | E22: 事故対応 | F22: =②維持管理情報・業務の項目別評価と総合評価!R28 -> 0 | G22: 13 | H22: =F22*G22 -> 0
C23: 2 | E23: 修繕工事（漏水事故情報） | F23: =②維持管理情報・業務の項目別評価と総合評価!R29 -> 0 | G23: 9 | H23: =F23*G23 -> 0
C24: 3 | E24: 応急給水 | F24: =②維持管理情報・業務の項目別評価と総合評価!R30 -> 0 | G24: 9 | H24: 0
C25: 4 | E25: 利用者対応 | F25: =②維持管理情報・業務の項目別評価と総合評価!R31 -> 0 | G25: 9 | H25: 0
C26: 5 | E26: 他工事立会 | F26: =②維持管理情報・業務の項目別評価と総合評価!R32 -> 0 | G26: 5 | H26: 0
C27: 6 | D27: 日常及び定期点検 | E27: 弁栓類点検 | F27: =②維持管理情報・業務の項目別評価と総合評価!R33 -> 0 | G27: 10 | H27: 0
C28: 7 | E28: 弁室・弁きょう等点検 | F28: =②維持管理情報・業務の項目別評価と総合評価!R34 -> 0 | G28: 5 | H28: 0
C29: 8 | E29: 水管橋等点検 | F29: =②維持管理情報・業務の項目別評価と総合評価!R35 -> 0 | G29: 5 | H29: 0
C30: 9 | E30: 電気防食設備の点検 | F30: =②維持管理情報・業務の項目別評価と総合評価!R36 -> 0 | G30: 5 | H30: 0
C31: 10 | E31: 震災対策用貯水施設の点検 | F31: =②維持管理情報・業務の項目別評価と総合評価!R37 -> 0 | G31: 5 | H31: 0
C32: 11 | E32: 管路パトロール | F32: =②維持管理情報・業務の項目別評価と総合評価!R38 -> 0 | G32: 3 | H32: 0
C33: 12 | D33: 詳細調査 | E33: 漏水調査 | F33: =②維持管理情報・業務の項目別評価と総合評価!R39 -> 0 | G33: 7 | H33: 0
C34: 13 | E34: 水量・水圧・水質調査 | F34: =②維持管理情報・業務の項目別評価と総合評価!R40 -> 0 | G34: 6 | H34: 0
C35: 14 | E35: 洗浄作業 | F35: =②維持管理情報・業務の項目別評価と総合評価!R41 -> 0 | G35: 4 | H35: 0
C36: 15 | E36: 管体腐食度調査 | F36: =②維持管理情報・業務の項目別評価と総合評価!R42 -> 0 | G36: 3 | H36: 0
C37: 16 | E37: 管内調査 | F37: =②維持管理情報・業務の項目別評価と総合評価!R43 -> 0 | G37: 2 | H37: 0
B38: 合計（500点満点） | H38: =SUM(H22:H37) -> 0
B39: 総合評価点（d）＝（ｃ）/5（100点満点） | H39: =H38/5 -> 0

Sheet リンク (hidden)
F2: （1） | G2: （2） | H2: （3） | I2: （4） | J2: （5）
B3: 項目の分類 | C3: NO | D3: 項目
B4: 維持管理の取り組み状況の実態把握 | C4: 1 | D4: 図面及び台帳（1） | E4: 図面台帳 | F4: =IF(K4=1,TRUE,FALSE) -> TRUE | G4: =IF(K4=2,TRUE,FALSE) -> FALSE | H4: FALSE | I4: FALSE | J4: FALSE | K4: 1
C5: 2 | E5: 弁栓台帳 | F5: =IF(K5=1,TRUE,FALSE) -> TRUE | G5: =IF(K5=2,TRUE,FALSE) -> FALSE | H5: FALSE | I5: FALSE | J5: FALSE | K5: 1
C6: 3 | E6: 管路台帳 | F6: TRUE | G6: FALSE | H6: FALSE | I6: FALSE | J6: FALSE | K6: 1
C7: 4 | D7: 図面及び台帳（2） | E7: 水管橋・橋梁添架管台帳 | F7: TRUE | G7: FALSE | H7: FALSE | I7: FALSE | J7: FALSE | K7: 1
C8: 5 | E8: 電気防食設備台帳 | F8: TRUE | G8: FALSE | H8: FALSE | I8: FALSE | J8: FALSE | K8: 1
C9: 6 | E9: 震災対策用貯水施設台帳 | F9: TRUE | G9: FALSE | H9: FALSE | I9: FALSE | J9: FALSE | K9: 1
C10: 7 | D10: 事故対応情報録 | E10: 応急給水 | F10: TRUE | G10: FALSE | H10: FALSE | I10: FALSE | J10: FALSE | K10: 1
C11: 8 | E11: 備蓄資機材一覧 | F11: TRUE | G11: FALSE | H11: FALSE | I11: FALSE | J11: FALSE | K11: 1
C12: 9 | E12: 緊急輸送道路 | F12: TRUE | G12: FALSE | H12: FALSE | I12: FALSE | J12: FALSE | K12: 1
C13: 10 | D13: 運転記録 | E13: 水質調査記録 | F13: TRUE | G13: FALSE | H13: FALSE | I13: FALSE | J13: FALSE | K13: 1
C14: 11 | E14: 水量調査記録 | F14: TRUE | G14: FALSE | H14: FALSE | I14: FALSE | J14: FALSE | K14: 1
C15: 12 | E15: 水圧調査記録 | F15: TRUE | G15: FALSE | H15: FALSE | I15: FALSE | J15: FALSE | K15: 1
C16: 13 | D16: 保全記録 | E16: 事故対応等の記録 | F16: TRUE | G16: FALSE | H16: FALSE | I16: FALSE | J16: FALSE | K16: 1
C17: 14 | E17: 日常及び定期点検の記録 | F17: TRUE | G17: FALSE | H17: FALSE | I17: FALSE | J17: FALSE | K17: 1
C18: 15 | E18: 詳細調査の記録 | F18: TRUE | G18: FALSE | H18: FALSE | I18: FALSE | J18: FALSE | K18: 1
C19: 16 | D19: 事故対応等 | E19: 事故対応 | F19: TRUE | G19: FALSE | H19: FALSE | I19: FALSE | J19: FALSE | K19: 1
C20: 17 | E20: 修繕工事（漏水事故情報） | F20: TRUE | G20: FALSE | H20: FALSE | I20: FALSE | J20: FALSE | K20: 1
C21: 18 | E21: 応急給水 | F21: TRUE | G21: FALSE | H21: FALSE | I21: FALSE | J21: FALSE | K21: 1
C22: 19 | E22: 利用者対応 | F22: TRUE | G22: FALSE | H22: FALSE | I22: FALSE | J22: FALSE | K22: 1
C23: 20 | E23: 他工事立会 | F23: TRUE | G23: FALSE | H23: FALSE | I23: FALSE | J23: FALSE | K23: 1
C24: 21 | D24: 日常及び定期点検 | E24: 弁栓類点検 | F24: TRUE | G24: FALSE | H24: FALSE | I24: FALSE | J24: FALSE | K24: 1
C25: 22 | E25: 弁室・弁きょう等点検 | F25: TRUE | G25: FALSE | H25: FALSE | I25: FALSE | J25: FALSE | K25: 1
C26: 23 | E26: 水管橋等点検 | F26: TRUE | G26: FALSE | H26: FALSE | I26: FALSE | J26: FALSE | K26: 1
C27: 24 | E27: 電気防食設備の点検 | F27: TRUE | G27: FALSE | H27: FALSE | I27: FALSE | J27: FALSE | K27: 1
C28: 25 | E28: 震災対策用貯水施設の点検 | F28: TRUE | G28: FALSE | H28: FALSE | I28: FALSE | J28: FALSE | K28: 1
C29: 26 | E29: 管路パトロール | F29: TRUE | G29: FALSE | H29: FALSE | I29: FALSE | J29: FALSE | K29: 1
C30: 27 | D30: 詳細調査 | E30: 漏水調査 | F30: TRUE | G30: FALSE | H30: FALSE | I30: FALSE | J30: FALSE | K30: 1
C31: 28 | E31: 水量・水圧・水質調査 | F31: TRUE | G31: FALSE | H31: FALSE | I31: FALSE | J31: FALSE | K31: 1
C32: 29 | E32: 洗浄作業 | F32: TRUE | G32: FALSE | H32: FALSE | I32: FALSE | J32: FALSE | K32: 1
C33: 30 | E33: 管体腐食度調査 | F33: TRUE | G33: FALSE | H33: FALSE | I33: FALSE | J33: FALSE | K33: 1
C34: 31 | E34: 管内調査 | F34: TRUE | G34: FALSE | H34: FALSE | I34: FALSE | J34: FALSE | K34: 1

Sheet 維持管理情報･総合評価グラフ (hidden)
C2: 表１．情報の管理状態
C3: 中分類 | D3: 小分類 | E3: 満点 | G3: A | H3: B | I3: C | J3: D | K3: E | L3: F | M3: G | N3: H | O3: L | P3: O | Q3: M | R3: R | S3: I | T3: N | U3: P | V3: Q | W3: S | X3: T | Y3: J | Z3: K
C4: 図面及び台帳 (1) | D4: 管路図面 | E4: 5 | G4: 5 | H4: 5 | I4: 4 | J4: 5 | K4: 5 | L4: 5 | M4: 5 | N4: 5 | O4: 5 | P4: 5 | Q4: 5 | R4: 4 | S4: 5 | T4: 5 | U4: 4 | V4: 5 | W4: 5 | X4: 3 | Y4: 5 | Z4: 5
D5: 弁栓台帳 | E5: 5 | G5: 4 | H5: 4 | I5: 3 | J5: 5 | K5: 4 | L5: 5 | M5: 5 | N5: 5 | O5: 5 | P5: 5 | Q5: 0 | R5: 0 | S5: 0 | T5: 0 | U5: 3 | V5: 5 | W5: 5 | X5: 0 | Y5: 5 | Z5: 5
D6: 管路台帳 | E6: 5 | G6: 5 | H6: 5 | I6: 4 | J6: 5 | K6: 5 | L6: 5 | M6: 5 | N6: 5 | O6: 5 | P6: 5 | Q6: 4 | R6: 0 | S6: 5 | T6: 4 | U6: 0 | V6: 0 | W6: 5 | X6: 3 | Y6: 5 | Z6: 5
C7: 図面及び台帳 (2) | D7: 水管橋・橋梁添架管台帳 | E7: 5 | G7: 5 | H7: 4 | I7: 0 | J7: 4 | K7: 5 | L7: 5 | M7: 5 | N7: 0 | O7: 5 | P7: 5 | Q7: 0 | R7: 2 | S7: 4 | T7: 0 | U7: 0 | V7: 0 | W7: 4 | X7: 0 | Y7: 5 | Z7: 5
D8: 電気防食設備台帳 | E8: 5 | G8: 5 | H8: 0 | I8: 0 | J8: 2 | K8: 5 | L8: 5 | M8: 3 | N8: 2 | O8: 5 | Q8: 0 | R8: 0 | V8: 0 | X8: 0 | Y8: 5 | Z8: 2
D9: 震災対策用貯水施設台帳 | E9: 5 | G9: 5 | H9: 0 | I9: 0 | J9: 4 | K9: 5 | M9: 5 | N9: 5 | O9: 5 | P9: 5 | R9: 0 | U9: 0 | V9: 3 | X9: 3 | Y9: 0
C10: 事故対応情報 | D10: 応急給水地点 | E10: 5 | G10: 4 | H10: 5 | I10: 0 | J10: 5 | K10: 4 | L10: 5 | M10: 5 | N10: 4 | O10: 3 | P10: 4 | Q10: 0 | R10: 3 | S10: 0 | T10: 0 | U10: 3 | V10: 3 | W10: 4 | X10: 5 | Y10: 3 | Z10: 3
D11: 備蓄資機材一覧 | E11: 5 | G11: 5 | H11: 5 | I11: 5 | J11: 5 | K11: 4 | L11: 5 | M11: 4 | N11: 5 | O11: 5 | P11: 5 | Q11: 0 | R11: 4 | S11: 3 | T11: 3 | U11: 3 | V11: 3 | W11: 4 | X11: 4 | Y11: 4 | Z11: 4
D12: 緊急輸送道路 | E12: 5 | G12: 5 | H12: 5 | I12: 0 | J12: 4 | K12: 4 | L12: 4 | M12: 3 | N12: 0 | O12: 2 | P12: 0 | Q12: 0 | R12: 0 | S12: 0 | T12: 0 | X12: 0 | Z12: 3
C13: 運転記録 | D13: 水質調査記録 | E13: 5 | G13: 5 | H13: 5 | I13: 4 | J13: 5 | K13: 5 | L13: 5 | M13: 4 | N13: 5 | O13: 5 | P13: 5 | Q13: 5 | R13: 4 | S13: 3 | T13: 5 | U13: 3 | V13: 4 | W13: 5 | X13: 4 | Y13: 5 | Z13: 4
D14: 水量調査記録 | E14: 5 | G14: 5 | H14: 5 | I14: 0 | J14: 5 | K14: 5 | L14: 5 | M14: 4 | N14: 5 | O14: 4 | P14: 5 | Q14: 5 | R14: 4 | S14: 3 | T14: 5 | U14: 3 | V14: 4 | W14: 5 | X14: 4 | Y14: 5 | Z14: 0
D15: 水圧調査記録 | E15: 5 | G15: 5 | H15: 5 | I15: 4 | J15: 5 | K15: 5 | L15: 5 | M15: 4 | N15: 3 | O15: 5 | P15: 5 | Q15: 5 | R15: 4 | S15: 3 | T15: 5 | U15: 0 | V15: 4 | W15: 5 | X15: 4 | Y15: 5 | Z15: 0
C16: 保全記録 | D16: 事故対応等の記録 | E16: 5 | G16: 5 | H16: 5 | I16: 5 | J16: 5 | K16: 5 | L16: 5 | M16: 5 | N16: 5 | O16: 5 | P16: 5 | Q16: 3 | R16: 3 | S16: 3 | T16: 4 | U16: 2 | V16: 5 | W16: 4 | X16: 4 | Y16: 4 | Z16: 4
D17: 日常及び定期点検の記録 | E17: 5 | G17: 5 | H17: 5 | I17: 3 | J17: 5 | K17: 5 | L17: 5 | M17: 5 | N17: 5 | O17: 5 | P17: 5 | Q17: 3 | R17: 3 | S17: 3 | T17: 0 | U17: 2 | V17: 4 | W17: 4 | X17: 4 | Y17: 4 | Z17: 4
D18: 詳細調査の記録 | E18: 5 | G18: 5 | H18: 5 | I18: 4 | J18: 5 | K18: 5 | L18: 5 | M18: 5 | N18: 5 | O18: 5 | P18: 5 | Q18: 4 | R18: 4 | S18: 2 | T18: 4 | U18: 2 | V18: 4 | W18: 5 | X18: 4 | Y18: 5 | Z18: 5
E19: =SUM(E4:E18) -> 75 | G19: =SUM(G4:G18) -> 73 | H19: 63 | I19: 36 | J19: 69 | K19: 71 | L19: 69 | M19: 67 | N19: 59 | O19: =SUM(O4:O18) -> 69 | P19: =SUM(P4:P18) -> 64 | Q19: =SUM(Q4:Q18) -> 34 | R19: =SUM(R4:R18) -> 35 | S19: =SUM(S4:S18) -> 34 | T19: 35 | U19: 25 | V19: 44 | W19: 55 | X19: 42 | Y19: =SUM(Y4:Y18) -> 60 | Z19: =SUM(Z4:Z18) -> 49
C21: 表２．業務の実施状況
C22: 中分類 | D22: 小分類 | E22: 満点 | G22: A | H22: B | I22: C | J22: D | K22: E | L22: F | M22: G | N22: H | O22: L | P22: O | Q22: M | R22: R | S22: I | T22: N | U22: P | V22: Q | W22: S | X22: T | Y22: J | Z22: K
C23: 事故対応等 | D23: 事故対応 | E23: 5 | G23: 5 | H23: 5 | I23: 5 | J23: 5 | K23: 5 | L23: 5 | M23: 5 | N23: 2 | O23: 5 | P23: 5 | Q23: 3 | R23: 4 | S23: 5 | T23: 3 | U23: 3 | V23: 4 | W23: 4 | X23: 4 | Y23: 5 | Z23: 5
D24: 修繕工事 | E24: 5 | G24: 5 | H24: 4 | I24: 4 | J24: 5 | K24: 5 | L24: 5 | M24: 5 | N24: 5 | O24: 5 | P24: 5 | Q24: 3 | R24: 3 | S24: 5 | T24: 3 | U24: 3 | V24: 4 | W24: 4 | X24: 4 | Y24: 5 | Z24: 5
D25: 応急給水 | E25: 5 | G25: 5 | H25: 4 | I25: 4 | J25: 3 | K25: 5 | L25: 5 | M25: 5 | N25: 4 | O25: 4 | P25: 5 | Q25: 2 | R25: 4 | S25: 4 | T25: 2 | U25: 3 | V25: 4 | W25: 5 | X25: 2 | Y25: 5 | Z25: 4
D26: 利用者対応 | E26: 5 | G26: 5 | H26: 3 | I26: 2 | J26: 5 | K26: 4 | L26: 4 | M26: 4 | N26: 2 | O26: 2 | P26: 4 | Q26: 2 | R26: 3 | S26: 2 | T26: 3 | U26: 2 | V26: 4 | W26: 4 | X26: 3 | Y26: 0 | Z26: 0
D27: 他工事立会 | E27: 5 | G27: 5 | H27: 4 | I27: 2 | J27: 4 | K27: 5 | L27: 4 | M27: 4 | N27: 3 | O27: 4 | P27: 5 | Q27: 2 | R27: 2 | S27: 2 | T27: 3 | U27: 3 | V27: 4 | W27: 4 | X27: 4 | Y27: 5 | Z27: 2
C28: 日常及び定期点検 | D28: 弁栓類点検 | E28: 5 | G28: 5 | H28: 5 | I28: 3 | J28: 5 | K28: 5 | L28: 5 | M28: 5 | N28: 3 | O28: 0 | P28: 5 | Q28: 0 | R28: 2 | S28: 3 | T28: 0 | U28: 2 | V28: 0 | W28: 0 | X28: 0 | Y28: 5 | Z28: 5
D29: 弁室・弁きょう等点検 | E29: 5 | G29: 5 | H29: 5 | I29: 3 | J29: 5 | K29: 5 | L29: 4 | M29: 5 | N29: 2 | O29: 0 | P29: 5 | Q29: 0 | R29: 2 | S29: 2 | T29: 0 | U29: 2 | V29: 0 | W29: 4 | X29: 0 | Y29: 5 | Z29: 5
D30: 水管橋等点検 | E30: 5 | G30: 5 | H30: 5 | I30: 3 | J30: 5 | K30: 5 | L30: 5 | M30: 5 | N30: 4 | O30: 0 | P30: 5 | Q30: 0 | R30: 3 | S30: 4 | T30: 0 | U30: 0 | V30: 0 | W30: 4 | X30: 0 | Y30: 5 | Z30: 3
D31: 電気防食設備の点検 | E31: 5 | G31: 5 | H31: 4 | I31: 3 | J31: 2 | K31: 5 | L31: 4 | M31: 3 | N31: 4 | O31: 4 | Q31: 4 | R31: 3 | V31: 0 | X31: 0 | Y31: 4 | Z31: 2
D32: 震災対策用貯水施設の点検 | E32: 5 | G32: 5 | H32: 5 | I32: 0 | J32: 5 | K32: 5 | M32: 5 | N32: 5 | O32: 2 | P32: 5 | R32: 0 | U32: 0 | V32: 3 | X32: 4 | Y32: 0
D33: 管路パトロール | E33: 5 | G33: 5 | H33: 5 | I33: 3 | J33: 4 | K33: 5 | L33: 5 | M33: 5 | N33: 3 | O33: 0 | P33: 5 | Q33: 0 | R33: 3 | S33: 0 | T33: 0 | U33: 0 | V33: 0 | W33: 4 | X33: 3 | Y33: 5 | Z33: 4
C34: 詳細調査 | D34: 漏水調査 | E34: 5 | G34: 5 | H34: 5 | I34: 4 | J34: 4 | K34: 3 | L34: 5 | M34: 5 | N34: 5 | O34: 2 | P34: 5 | Q34: 5 | R34: 3 | S34: 3 | T34: 5 | U34: 3 | V34: 0 | W34: 5 | X34: 4 | Y34: 0 | Z34: 0
D35: 水量・水圧・水質調査 | E35: 5 | G35: 5 | H35: 4 | I35: 3 | J35: 5 | K35: 5 | L35: 4 | M35: 4 | N35: 4 | O35: 4 | P35: 4 | Q35: 0 | R35: 3 | S35: 3 | T35: 3 | U35: 3 | V35: 3 | W35: 4 | X35: 4 | Y35: 4 | Z35: 4
D36: 洗浄作業 | E36: 5 | G36: 5 | H36: 5 | I36: 3 | J36: 5 | K36: 5 | L36: 4 | M36: 4 | N36: 3 | O36: 3 | P36: 5 | Q36: 0 | R36: 0 | S36: 0 | T36: 0 | U36: 3 | V36: 0 | W36: 4 | X36: 2 | Y36: 4 | Z36: 4
D37: 管体腐食度調査 | E37: 5 | G37: 5 | H37: 4 | I37: 0 | J37: 5 | K37: 5 | L37: 5 | M37: 4 | N37: 4 | O37: 3 | P37: 0 | Q37: 0 | R37: 0 | S37: 0 | T37: 0 | U37: 0 | V37: 3 | W37: 0 | X37: 0 | Y37: 0 | Z37: 5
D38: 管内調査 | E38: 5 | G38: 5 | H38: 0 | I38: 0 | J38: 0 | K38: 5 | L38: 4 | M38: 3 | N38: 0 | O38: 0 | P38: 0 | Q38: 0 | R38: 0 | S38: 0 | T38: 0 | U38: 0 | V38: 0 | W38: 0 | X38: 0 | Y38: 4 | Z38: 0
E39: =SUM(E23:E38) -> 80 | G39: =SUM(G23:G38) -> 80 | H39: 67 | I39: 42 | J39: 67 | K39: 77 | L39: 68 | M39: 71 | N39: 53 | O39: 38 | P39: 63 | Q39: 21 | R39: 35 | S39: 33 | T39: 22 | U39: 27 | V39: 29 | W39: 46 | X39: 34 | Y39: 56 | Z39: 48
A41: 【重みづけ後の点数（情報の管理状態）】
A42: 中分類 | C42: 小分類 | D42: 重み付け 100点満点 | E42: 満点 | G42: A | H42: B | I42: C | J42: D | K42: E | L42: F | M42: G | N42: H | O42: L | P42: O | Q42: M | R42: R | S42: I | T42: N | U42: P | V42: Q | W42: S | X42: T | Y42: J | Z42: K
G43: 重み付け後 | H43: 重み付け後 | I43: 重み付け後 | J43: 重み付け後 | K43: 重み付け後 | L43: 重み付け後 | M43: 重み付け後 | N43: 重み付け後 | O43: 重み付け後 | P43: 重み付け後 | Q43: 重み付け後 | R43: 重み付け後 | S43: 重み付け後 | T43: 重み付け後 | U43: 重み付け後 | V43: 重み付け後 | W43: 重み付け後 | X43: 重み付け後 | Y43: 重み付け後 | Z43: 重み付け後
A44: 図面及び台帳 (1) | C44: 管路図面 | D44: 15 | E44: =D44*E4 -> 75 | G44: =G4*$D44 -> 75 | H44: 75 | I44: 60 | J44: 75 | K44: 75 | L44: 75 | M44: 75 | N44: 75 | O44: 75 | P44: 75 | Q44: 75 | R44: 60 | S44: 75 | T44: 75 | U44: 60 | V44: 75 | W44: 75 | X44: 45 | Y44: 75 | Z44: 75
C45: 弁栓台帳 | D45: 11 | E45: =D45*E5 -> 55 | G45: 44 | H45: 44 | I45: 33 | J45: 55 | K45: 44 | L45: 55 | M45: 55 | N45: 55 | O45: 55 | P45: 55 | Q45: 0 | R45: 0 | S45: 0 | T45: 0 | U45: 33 | V45: 55 | W45: 55 | X45: 0 | Y45: 55 | Z45: 55
C46: 管路台帳 | D46: 9 | E46: 45 | G46: 45 | H46: 45 | I46: 36 | J46: 45 | K46: 45 | L46: 45 | M46: 45 | N46: 45 | O46: 45 | P46: 45 | Q46: 36 | R46: 0 | S46: 45 | T46: 36 | U46: 0 | V46: 0 | W46: 45 | X46: 27 | Y46: 45 | Z46: 45
A47: 図面及び台帳 (2) | C47: 水管橋・橋梁添架管台帳 | D47: 6 | E47: 30 | G47: 30 | H47: 24 | I47: 0 | J47: 24 | K47: 30 | L47: 30 | M47: 30 | N47: 0 | O47: 30 | P47: 30 | Q47: 0 | R47: 12 | S47: 24 | T47: 0 | U47: 0 | V47: 0 | W47: 24 | X47: 0 | Y47: 30 | Z47: 30
C48: 電気防食設備台帳 | D48: 4 | E48: 20 | G48: 20 | H48: 0 | I48: 0 | J48: 8 | K48: 20 | L48: 20 | M48: 12 | N48: 8 | O48: 20 | P48: 0 | Q48: 0 | R48: 0 | S48: 0 | T48: 0 | U48: 0 | V48: 0 | W48: 0 | X48: 0 | Y48: 20 | Z48: 8
C49: 震災対策用貯水施設台帳 | D49: 4 | E49: 20 | G49: 20 | H49: 0 | I49: 0 | J49: 16 | K49: 20 | L49: 0 | M49: 20 | N49: 20 | O49: 20 | P49: 20 | Q49: 0 | R49: 0 | S49: 0 | T49: 0 | U49: 0 | V49: 12 | W49: 0 | X49: 12 | Y49: 0 | Z49: 0
A50: 事故対応情報 | C50: 応急給水地点 | D50: 6 | E50: 30 | G50: 24 | H50: 30 | I50: 0 | J50: 30 | K50: 24 | L50: 30 | M50: 30 | N50: 24 | O50: 18 | P50: 24 | Q50: 0 | R50: 18 | S50: 0 | T50: 0 | U50: 18 | V50: 18 | W50: 24 | X50: 30 | Y50: 18 | Z50: 18
C51: 備蓄資機材一覧 | D51: 6 | E51: 30 | G51: 30 | H51: 30 | I51: 30 | J51: 30 | K51: 24 | L51: 30 | M51: 24 | N51: 30 | O51: 30 | P51: 30 | Q51: 0 | R51: 24 | S51: 18 | T51: 18 | U51: 18 | V51: 18 | W51: 24 | X51: 24 | Y51: 24 | Z51: 24
C52: 緊急輸送道路 | D52: 3 | E52: 15 | G52: 15 | H52: 15 | I52: 0 | J52: 12 | K52: 12 | L52: 12 | M52: 9 | N52: 0 | O52: 6 | P52: 0 | Q52: 0 | R52: 0 | S52: 0 | T52: 0 | U52: 0 | V52: 0 | W52: 0 | X52: 0 | Y52: 0 | Z52: 9
A53: 運転記録 | C53: 水質調査記録 | D53: 6 | E53: 30 | G53: 30 | H53: 30 | I53: 24 | J53: 30 | K53: 30 | L53: 30 | M53: 24 | N53: 30 | O53: 30 | P53: 30 | Q53: 30 | R53: 24 | S53: 18 | T53: 30 | U53: 18 | V53: 24 | W53: 30 | X53: 24 | Y53: 30 | Z53: 24
C54: 水量調査記録 | D54: 5 | E54: 25 | G54: 25 | H54: 25 | I54: 0 | J54: 25 | K54: 25 | L54: 25 | M54: 20 | N54: 25 | O54: 20 | P54: 25 | Q54: 25 | R54: 20 | S54: 15 | T54: 25 | U54: 15 | V54: 20 | W54: 25 | X54: 20 | Y54: 25 | Z54: 0
C55: 水圧調査記録 | D55: 5 | E55: 25 | G55: 25 | H55: 25 | I55: 20 | J55: 25 | K55: 25 | L55: 25 | M55: 20 | N55: 15 | O55: 25 | P55: 25 | Q55: 25 | R55: 20 | S55: 15 | T55: 25 | U55: 0 | V55: 20 | W55: 25 | X55: 20 | Y55: 25 | Z55: 0
A56: 保全記録 | C56: 事故対応等の記録 | D56: 8 | E56: 40 | G56: 40 | H56: 40 | I56: 40 | J56: 40 | K56: 40 | L56: 40 | M56: 40 | N56: 40 | O56: 40 | P56: 40 | Q56: 24 | R56: 24 | S56: 24 | T56: 32 | U56: 16 | V56: =V16*$D56 -> 40 | W56: 32 | X56: 32 | Y56: 32 | Z56: 32
C57: 日常及び定期点検の記録 | D57: 7 | E57: 35 | G57: =G17*$D57 -> 35 | H57: 35 | I57: 21 | J57: 35 | K57: 35 | L57: 35 | M57: 35 | N57: 35 | O57: 35 | P57: 35 | Q57: 21 | R57: 21 | S57: 21 | T57: 0 | U57: 14 | V57: 28 | W57: 28 | X57: 28 | Y57: 28 | Z57: 28
C58: 詳細調査の記録 | D58: 5 | E58: 25 | G58: 25 | H58: 25 | I58: 20 | J58: 25 | K58: 25 | L58: 25 | M58: 25 | N58: 25 | O58: 25 | P58: 25 | Q58: 20 | R58: 20 | S58: 10 | T58: 20 | U58: 10 | V58: 20 | W58: 25 | X58: 20 | Y58: 25 | Z58: 25
D60: =SUM(D44:D58) -> 100 | E60: =SUM(E44:E58) -> 500 | G60: =SUM(G44:G58) -> 483 | H60: =SUM(H44:H58) -> 443 | I60: 284 | J60: 475 | K60: 474 | L60: 477 | M60: 464 | N60: 427 | O60: =SUM(O44:O58) -> 474 | P60: =SUM(P44:P58) -> 459 | Q60: =SUM(Q44:Q58) -> 256 | R60: =SUM(R44:R58) -> 243 | S60: 265 | T60: 261 | U60: 202 | V60: 330 | W60: 412 | X60: 282 | Y60: =SUM(Y44:Y58) -> 432 | Z60: =SUM(Z44:Z58) -> 373
A63: 【重みづけ後の点数（業務の実施状況）】
A64: 中分類 | C64: 小分類 | D64: 重み付け 100点満点 | E64: 満点 | G64: A | H64: B | I64: C | J64: D | K64: E | L64: F | M64: G | N64: H | O64: L | P64: O | Q64: M | R64: R | S64: I | T64: N | U64: P | V64: Q | W64: S | X64: T | Y64: J | Z64: K
G65: 重み付け後 （a'×b'） | H65: 重み付け後 （a'×b'） | I65: 重み付け後 （a'×b'） | J65: 重み付け後 （a'×b'） | K65: 重み付け後 （a'×b'） | L65: 重み付け後 （a'×b'） | M65: 重み付け後 （a'×b'） | N65: 重み付け後 （a'×b'） | O65: 重み付け後 （a'×b'） | P65: 重み付け後 （a'×b'） | Q65: 重み付け後 （a'×b'） | R65: 重み付け後 （a'×b'） | S65: 重み付け後 （a'×b'） | T65: 重み付け後 （a'×b'） | U65: 重み付け後 （a'×b'） | V65: 重み付け後 （a'×b'） | W65: 重み付け後 （a'×b'） | X65: 重み付け後 （a'×b'） | Y65: 重み付け後 （a'×b'） | Z65: 重み付け後 （a'×b'）
A66: 事故対応等 | C66: 事故対応 | D66: 13 | E66: =D66*E23 -> 65 | G66: =G23*$D66 -> 65 | H66: 65 | I66: 65 | J66: 65 | K66: 65 | L66: 65 | M66: 65 | N66: 26 | O66: 65 | P66: 65 | Q66: 39 | R66: 52 | S66: 65 | T66: 39 | U66: 39 | V66: 52 | W66: 52 | X66: 52 | Y66: 65 | Z66: 65
C67: 修繕工事 | D67: 9 | E67: 45 | G67: 45 | H67: 36 | I67: 36 | J67: 45 | K67: 45 | L67: 45 | M67: 45 | N67: 45 | O67: 45 | P67: 45 | Q67: 27 | R67: 27 | S67: 45 | T67: 27 | U67: 27 | V67: 36 | W67: 36 | X67: 36 | Y67: 45 | Z67: 45
C68: 応急給水 | D68: 9 | E68: 45 | G68: 45 | H68: 36 | I68: 36 | J68: 27 | K68: 45 | L68: 45 | M68: 45 | N68: 36 | O68: 36 | P68: 45 | Q68: 18 | R68: 36 | S68: 36 | T68: 18 | U68: 27 | V68: 36 | W68: 45 | X68: 18 | Y68: 45 | Z68: 36
C69: 利用者対応 | D69: 9 | E69: 45 | G69: 45 | H69: 27 | I69: 18 | J69: 45 | K69: 36 | L69: 36 | M69: 36 | N69: 18 | O69: 18 | P69: 36 | Q69: 18 | R69: 27 | S69: 18 | T69: 27 | U69: 18 | V69: 36 | W69: 36 | X69: 27 | Y69: 0 | Z69: 0
C70: 他工事立会 | D70: 5 | E70: 25 | G70: 25 | H70: 20 | I70: 10 | J70: 20 | K70: 25 | L70: 20 | M70: 20 | N70: 15 | O70: 20 | P70: 25 | Q70: 10 | R70: 10 | S70: 10 | T70: 15 | U70: 15 | V70: 20 | W70: 20 | X70: 20 | Y70: 25 | Z70: 10
A71: 日常及び定期点検 | C71: 弁栓類点検 | D71: 10 | E71: 50 | G71: 50 | H71: 50 | I71: 30 | J71: 50 | K71: 50 | L71: 50 | M71: 50 | N71: 30 | O71: 0 | P71: 50 | Q71: 0 | R71: 20 | S71: 30 | T71: 0 | U71: 20 | V71: 0 | W71: 0 | X71: 0 | Y71: 50 | Z71: 50
C72: 弁室・弁きょう等点検 | D72: 5 | E72: 25 | G72: 25 | H72: 25 | I72: 15 | J72: 25 | K72: 25 | L72: 20 | M72: 25 | N72: 10 | O72: 0 | P72: 25 | Q72: 0 | R72: 10 | S72: 10 | T72: 0 | U72: 10 | V72: 0 | W72: 20 | X72: 0 | Y72: 25 | Z72: 25
C73: 水管橋等点検 | D73: 5 | E73: 25 | G73: 25 | H73: 25 | I73: 15 | J73: 25 | K73: 25 | L73: 25 | M73: 25 | N73: 20 | O73: 0 | P73: 25 | Q73: 0 | R73: 15 | S73: 20 | T73: 0 | U73: 0 | V73: 0 | W73: 20 | X73: 0 | Y73: 25 | Z73: 15
C74: 電気防食設備の点検 | D74: 5 | E74: 25 | G74: 25 | H74: 20 | I74: 15 | J74: 10 | K74: 25 | L74: 20 | M74: 15 | N74: 20 | O74: 20 | P74: 0 | Q74: 20 | R74: 15 | S74: 0 | T74: 0 | U74: 0 | V74: 0 | W74: 0 | X74: 0 | Y74: 20 | Z74: 10
C75: 震災対策用貯水施設の点検 | D75: 5 | E75: 25 | G75: 25 | H75: 25 | I75: 0 | J75: 25 | K75: 25 | L75: 0 | M75: 25 | N75: 25 | O75: 10 | P75: 25 | Q75: 0 | R75: 0 | S75: 0 | T75: 0 | U75: 0 | V75: 15 | W75: 0 | X75: 20 | Y75: 0 | Z75: 0
C76: 管路パトロール | D76: 3 | E76: 15 | G76: 15 | H76: 15 | I76: 9 | J76: 12 | K76: 15 | L76: 15 | M76: 15 | N76: 9 | O76: 0 | P76: 15 | Q76: 0 | R76: 9 | S76: 0 | T76: 0 | U76: 0 | V76: 0 | W76: 12 | X76: 9 | Y76: 15 | Z76: 12
A77: 詳細調査 | C77: 漏水調査 | D77: 7 | E77: 35 | G77: 35 | H77: 35 | I77: 28 | J77: 28 | K77: 21 | L77: 35 | M77: 35 | N77: 35 | O77: 14 | P77: 35 | Q77: 35 | R77: 21 | S77: 21 | T77: 35 | U77: 21 | V77: 0 | W77: 35 | X77: 28 | Y77: 0 | Z77: 0
C78: 水量・水圧・水質調査 | D78: 6 | E78: 30 | G78: 30 | H78: 24 | I78: 18 | J78: 30 | K78: 30 | L78: 24 | M78: 24 | N78: 24 | O78: 24 | P78: 24 | Q78: 0 | R78: 18 | S78: 18 | T78: 18 | U78: 18 | V78: =V35*$D78 -> 18 | W78: 24 | X78: 24 | Y78: 24 | Z78: 24
C79: 洗浄作業 | D79: 4 | E79: 20 | G79: =G36*$D79 -> 20 | H79: 20 | I79: 12 | J79: 20 | K79: 20 | L79: 16 | M79: 16 | N79: 12 | O79: 12 | P79: 20 | Q79: 0 | R79: 0 | S79: 0 | T79: 0 | U79: 12 | V79: 0 | W79: 16 | X79: 8 | Y79: 16 | Z79: 16
C80: 管体腐食度調査 | D80: 3 | E80: 15 | G80: 15 | H80: 12 | I80: 0 | J80: 15 | K80: 15 | L80: 15 | M80: 12 | N80: 12 | O80: 9 | P80: 0 | Q80: 0 | R80: 0 | S80: 0 | T80: 0 | U80: 0 | V80: 9 | W80: 0 | X80: 0 | Y80: 0 | Z80: 15
C81: 管内調査 | D81: 2 | E81: 10 | G81: 10 | H81: 0 | I81: 0 | J81: 0 | K81: 10 | L81: 8 | M81: 6 | N81: 0 | O81: 0 | P81: 0 | Q81: 0 | R81: 0 | S81: 0 | T81: 0 | U81: 0 | V81: 0 | W81: 0 | X81: 0 | Y81: 8 | Z81: 0
D83: =SUM(D66:D81) -> 100 | E83: =SUM(E66:E81) -> 500 | G83: =SUM(G66:G81) -> 500 | H83: =SUM(H66:H81) -> 435 | I83: 307 | J83: 442 | K83: 477 | L83: 439 | M83: 459 | N83: 337 | O83: =SUM(O66:O81) -> 273 | P83: =SUM(P66:P81) -> 435 | Q83: =SUM(Q66:Q81) -> 167 | R83: =SUM(R66:R81) -> 260 | S83: 273 | T83: 179 | U83: 207 | V83: 222 | W83: 316 | X83: 242 | Y83: =SUM(Y66:Y81) -> 363 | Z83: =SUM(Z66:Z81) -> 323
E85: 【合計点】
E86: 重みづけなし | G86: A | H86: B | I86: C | J86: D | K86: E | L86: F | M86: G | N86: H | O86: L | P86: O | Q86: M | R86: R | S86: I | T86: N | U86: P | V86: Q | W86: S | X86: T | Y86: J | Z86: K
E87: 情報 | G87: =G19 -> 73 | H87: =H19 -> 63 | I87: 36 | J87: 69 | K87: 71 | L87: 69 | M87: 67 | N87: 59 | O87: 69 | P87: 64 | Q87: 34 | R87: 35 | S87: 34 | T87: 35 | U87: 25 | V87: 44 | W87: 55 | X87: 42 | Y87: 60 | Z87: 49
E88: 業務 | G88: =G39 -> 80 | H88: =H39 -> 67 | I88: 42 | J88: 67 | K88: 77 | L88: 68 | M88: 71 | N88: 53 | O88: 38 | P88: 63 | Q88: 21 | R88: 35 | S88: 33 | T88: 22 | U88: 27 | V88: 29 | W88: 46 | X88: 34 | Y88: 56 | Z88: 48
E90: 重みづけあり | G90: A | H90: B | I90: C | J90: D | K90: E | L90: F | M90: G | N90: H | O90: L | P90: O | Q90: M | R90: R | S90: I | T90: N | U90: P | V90: Q | W90: S | X90: T | Y90: J | Z90: K
E91: 情報 | G91: =G60 -> 483 | H91: =H60 -> 443 | I91: 284 | J91: 475 | K91: 474 | L91: 477 | M91: 464 | N91: 427 | O91: 474 | P91: 459 | Q91: 256 | R91: 243 | S91: 265 | T91: 261 | U91: 202 | V91: 330 | W91: 412 | X91: 282 | Y91: 432 | Z91: 373
E92: 業務 | G92: =G83 -> 500 | H92: =H83 -> 435 | I92: 307 | J92: 442 | K92: 477 | L92: 439 | M92: 459 | N92: 337 | O92: 273 | P92: 435 | Q92: 167 | R92: 260 | S92: 273 | T92: 179 | U92: 207 | V92: 222 | W92: 316 | X92: 242 | Y92: 363 | Z92: 323
E94: 【合計点】
E95: 重みづけなし（100点満点） | G95: A | H95: B | I95: C | J95: D | K95: E | L95: F | M95: G | N95: H | O95: L | P95: O | Q95: M | R95: R | S95: I | T95: N | U95: P | V95: Q | W95: S | X95: T | Y95: J | Z95: K
E96: 情報 | G96: =G87*100/$E$19 -> 97.33333333 | H96: =H87*100/$E$19 -> 84 | I96: 48 | J96: 92 | K96: 94.66666667 | L96: 92 | M96: 89.33333333 | N96: 78.66666667 | O96: 92 | P96: 85.33333333 | Q96: 45.33333333 | R96: 46.66666667 | S96: 45.33333333 | T96: 46.66666667 | U96: 33.33333333 | V96: 58.66666667 | W96: 73.33333333 | X96: 56 | Y96: 80 | Z96: 65.33333333
E97: 業務 | G97: =G88*100/$E$39 -> 100 | H97: =H88*100/$E$39 -> 83.75 | I97: 52.5 | J97: 83.75 | K97: 96.25 | L97: 85 | M97: 88.75 | N97: 66.25 | O97: 47.5 | P97: 78.75 | Q97: 26.25 | R97: 43.75 | S97: 41.25 | T97: 27.5 | U97: 33.75 | V97: 36.25 | W97: 57.5 | X97: 42.5 | Y97: 70 | Z97: 60
F100: あなたの総合評価 | G100: 給水人口100万人以上の例 | N100: 給水人口25万人以上100万人未満の例 | Q100: 給水人口10万人以上25万人未満の例 | S100: 給水人口10万人未満の例 | Y100: 用水供給の例
C101: 給水人口100万人以上 | E101: 重みづけあり（100点満点） | F101: あたなの総合評価 | G101: A | H101: B | I101: C | J101: D | K101: E | L101: F | M101: G | N101: H | O101: L | P101: O | Q101: M | R101: R | S101: I | T101: N | U101: P | V101: Q | W101: S | X101: T | Y101: J | Z101: K
C102: 給水人口25万人以上～100万人未満 | E102: 情報の管理状態 | F102: =総合評価!H19 -> 0 | G102: 96.6 | H102: 88.6 | I102: 56.8 | J102: 95 | K102: 94.8 | L102: 95.4 | M102: 92.8 | N102: 85.4 | O102: 94.8 | P102: 91.8 | Q102: 51.2 | R102: 48.6 | S102: 53 | T102: 52.2 | U102: 40.4 | V102: 66 | W102: 82.4 | X102: 56.4 | Y102: 86.4 | Z102: 74.6
C103: 給水人口10万人以上～25万人未満 | E103: 業務の管理状態 | F103: =総合評価!H39 -> 0 | G103: 100 | H103: 87 | I103: 61.4 | J103: 88.4 | K103: 95.4 | L103: 87.8 | M103: 91.8 | N103: 67.4 | O103: 54.6 | P103: 87 | Q103: 33.4 | R103: 52 | S103: 54.6 | T103: 35.8 | U103: 41.4 | V103: 44.4 | W103: 63.2 | X103: 48.4 | Y103: 72.6 | Z103: 64.6
C104: 給水人口10万人未満
C105: 用水供給
